Cogmind - Beta 9.6 @@@ ROGUE MODE // 2020.06.11 @ 19:19:48 Player: Ari Result: Destroyed by G-34 Mercenary with Small Laser Performance ------------- Evolutions (0) 0 Regions Visited (2) 400 Robots Destroyed (28) 140 Value Destroyed (632) 632 Prototype IDs (0) 0 Alien Tech Used (0) 0 Bonus (0) 0 TOTAL SCORE: 1172 Bonus ------- None Cogmind --------- Core Integrity 0/250 Matter 274/300 Energy 150/150 System Corruption 2% Temperature Cool (151) Movement Rolling (150) Ox6 Location -10/Mines Parts ------- > --- POWER (1) -------- Light Angular Momentum Engine > --- PROPULSION (2) --- Armored Wheel > --- UTILITY (2) ------ High-capacity Storage Unit High-capacity Storage Unit > --- WEAPON (2) ------- Beamcaster Light Assault Rifle > --- INVENTORY (20) --- Light Treads Aluminum Leg Aluminum Leg Improved Heat Sink Small Storage Unit Medium Storage Unit Medium Storage Unit Medium Storage Unit High-capacity Storage Unit Weight Redist. System Sensor Array Signal Interpreter Hardened Light Armor Plating Hardened Light Armor Plating Shield Generator Shield Generator Small Laser Grenade Launcher Peak State ------------ > --- POWER ------------ Light Angular Momentum Engine > --- PROPULSION ------- Wheel Armored Wheel > --- UTILITY ---------- High-capacity Storage Unit High-capacity Storage Unit > --- WEAPON ----------- Beamcaster Light Assault Rifle > --- INVENTORY -------- Light Treads Aluminum Leg Aluminum Leg Improved Heat Sink Small Storage Unit Medium Storage Unit Medium Storage Unit Medium Storage Unit High-capacity Storage Unit Weight Redist. System Sensor Array Signal Interpreter Hardened Light Armor Plating Hardened Light Armor Plating Shield Generator Shield Generator Small Laser Grenade Launcher [Rating: 18] Favorites ----------- Power Light Nuclear Core Engine Light Ion Engine Power Core Light Nuclear Core Propulsion Light Treads Treads Light Treads Wheel Armored Wheel Utility High-capacity Storage Unit Storage High-capacity Storage Unit Weapon Light Assault Rifle Energy Gun Medium Laser Ballistic Gun Light Assault Rifle Launcher Grenade Launcher Build | -11 -10 -10 ------- Run | Scr Mat Min Slots Evolved . | . . . Power . | . . . Propulsion . | . . . Utility . | . . . Weapon . | . . . Parts Attached 29 | 7 14 8 Power 4 | 1 2 1 Engine 3 | 1 1 1 Core 1 | . 1 . Reactor . | . . . Propulsion 5 | 2 1 2 Treads 3 | 2 1 . Leg . | . . . Wheel 2 | . . 2 Hover . | . . . Flight . | . . . Utility 6 | 2 4 . Device . | . . . Storage 6 | 2 4 . Processor . | . . . Hackware . | . . . Protection . | . . . Artifact . | . . . Weapon 14 | 2 7 5 Energy Gun 8 | 2 3 3 Energy Cannon . | . . . Ballistic Gun 4 | . 3 1 Ballistic Cannon . | . . . Launcher 2 | . 1 1 Special Weapon . | . . . Impact Weapon . | . . . Slashing Weapon . | . . . Piercing Weapon . | . . . Special Melee Weapon . | . . . Unidentified Prototypes . | . . . Parts Lost 13 | . 9 4 Power 3 | . 2 1 Propulsion 3 | . 2 1 Utility . | . . . Weapon 7 | . 5 2 Highest Loss Streak 4 | . 4 3 Average Slot Usage (%) 89 | . 87 98 Engine 4 | . 5 . Core 9 | . 7 13 Treads 16 | . 21 . Wheel 5 | . . 26 Storage 28 | . 28 28 Energy Gun 9 | . 8 16 Ballistic Gun 11 | . 14 1 Launcher 2 | . . 9 Naked Turns . | . . . Heaviest Build 73 | 15 73 73 Greatest Support 40 | 40 40 22 Greatest Overweight (x) 3 | 1 3 3 Average Overweight (x) 1 | . 1 3 Largest Inventory Capacity 20 | 8 20 20 Average Capacity 14 | 6 13 20 Most Carried 20 | 6 20 20 Average Carried 13 | 3 12 18 Final Capacity 20 | 8 20 20 Final Carried 20 | 6 20 18 Class Distribution -------------------- 51% | Hauler-Mutant 46% | Mutant Dominant Class ---------------- Mutant | -10/Materials Hauler-Mutant | -10/Mines Resources | -11 -10 -10 ----------- Run | Scr Mat Min Matter Collected 632 | 270 297 65 Remotely . | . . . Salvage Created 850 | 92 614 144 Parts 61 | 6 49 6 Haulers Intercepted 2 | . 2 . Recyclers Shooed 1 | . 1 . Parts Field Recycled . | . . . Retrieved Matter . | . . . Parts Self-Destructed . | . . . Prevented . | . . . Kills | -11 -10 -10 ------- Run | Scr Mat Min Combat Hostiles Destroyed 20 | . 16 4 Guns 16 | . 14 2 AOE 4 | . 2 2 Classes Destroyed 8 | 2 6 . Worker 1 | . 1 . Builder 1 | . 1 . Tunneler 1 | 1 . . Hauler 2 | . 2 . Recycler 1 | 1 . . Watcher 2 | . 2 . Swarmer 7 | . 6 1 Grunt 13 | . 10 3 Best Kill Streak 3 | 2 3 2 Combat Bots Only 3 | . 3 2 Max Kills in Single Turn 2 | 2 1 2 Gunslinging . | . . . Exploded 2 | . 1 2 Melee . | . . . Uniques/NPCs Destroyed . | . . . Combat | -11 -10 -10 -------- Run | Scr Mat Min Damage Taken 1361 | . 980 381 Core 258 | . 203 55 Absorbed by Shields . | . . . Core Remaining (%) 100 | 100 . . Volleys Fired 111 | 2 92 17 Largest 2 | 2 2 2 Hottest 100 | 100 100 95 Shots Fired 184 | 4 153 27 Gun 180 | 4 151 25 Cannon . | . . . Launcher 4 | . 2 2 Special . | . . . Kinetic 111 | . 105 6 Thermal 69 | 4 46 19 Explosive 4 | . 2 2 Electromagnetic . | . . . Robot Hit Streak 14 | 2 14 6 Robot Miss Streak 3 | 1 3 3 Penetration Max . | . . . Secondary Targets 2 | . 1 1 Max Gunslinging Chain 1 | . 1 1 Shots Hit Robots 120 | 2 100 18 Core Hits 50 | 3 40 7 Critical Hits 2 | . 2 . Critical Kills 1 | . 1 . Critical Parts Destroyed 1 | . 1 . Melee Attacks . | . . . Impact . | . . . Slashing . | . . . Piercing . | . . . Sneak Attacks . | . . . Combat Hostiles . | . . . Follow-up Attacks . | . . . Damage Inflicted 1518 | 38 1184 296 Guns 1257 | 38 1049 170 Cannons . | . . . Explosions 213 | . 87 126 Melee . | . . . Ramming 48 | . 48 . Kinetic 713 | . 682 31 Thermal 544 | 38 367 139 Explosive 213 | . 87 126 Electromagnetic . | . . . Impact . | . . . Slashing . | . . . Piercing . | . . . Highest Corruption 2 | . 2 2 Average Corruption 2 | . 2 2 Corruption Purged . | . . . Effects 22 | . 16 6 Message Errors 7 | . 5 2 Heat Flow Errors 5 | . 4 1 Energy Discharges 3 | . 2 1 Data Loss (minor) 5 | . 3 2 Targeting Errors 1 | . 1 . Weapon Failures 1 | . 1 . Overload Shots . | . . . Overflow Damage 4 | . . 4 Projectiles . | . . . Explosions 4 | . . 4 Melee . | . . . Knockbacks 1 | . 1 . Impact 1 | . 1 . Kinetic . | . . . Secondary . | . . . Self-Inflicted Damage 50 | . . 50 Shots 2 | . . 2 Rammed 9 | . 9 . Targets Rammed 11 | . 11 . Kicked . | . . . Crushed 2 | . 2 . Highest Temperature 335 | 78 288 335 Average Temperature 81 | 40 71 119 Received Heat Transfer 561 | . 381 180 Effects 2 | . . 2 Interference 2 | . . 2 Siege Activations . | . . . Robots Corrupted . | . . . Combat Hostiles . | . . . Parts Fried . | . . . Impact Corruptions . | . . . Robots Melted . | . . . Combat Hostiles . | . . . Parts Melted 4 | 2 . 2 Heat Transferred 1470 | 111 1074 285 Parts Sabotaged . | . . . Parts Stolen . | . . . Parts Stripped . | . . . Power Chain Reactions . | . . . Missiles Intercepted . | . . . Alert | -11 -10 -10 ------- Run | Scr Mat Min Peak Influence 179 | 10 179 55 Average Influence 52 | 2 57 45 Maximum Alert Level . | . . . Low Security (%) 100 | 100 100 100 Level 1 . | . . . Level 2 . | . . . Level 3 . | . . . Level 4 . | . . . Level 5 . | . . . High Security . | . . . Max Security . | . . . Squads Dispatched 3 | . 3 . Investigation 2 | . 2 . Extermination . | . . . Reinforcement 1 | . 1 . Assault . | . . . Garrison . | . . . Intercept . | . . . Construction Impeded . | . . . Haulers Reinforced . | . . . Stealth | -11 -10 -10 --------- Run | Scr Mat Min Distress Signals 1 | . 1 . Communications Jammed . | . . . Distress Signals . | . . . Times Spotted 35 | . 29 6 Peak Tracking Total 4 | . 4 2 Tactical Retreats 2 | . 2 . Traps | -11 -10 -10 ------- Run | Scr Mat Min Traps Triggered 3 | . 3 . Indirectly . | . . . Trap Hack Attempts . | . . . Triggered . | . . . Disarmed . | . . . Reprogrammed . | . . . Reused . | . . . Traps Extracted . | . . . Installed . | . . . Triggered . | . . . Machines | -11 -10 -10 ---------- Run | Scr Mat Min Machines Disabled . | . . . Max in Single Turn . | . . . Machines Sabotaged . | . . . Garrisons Compromised . | . . . Overloaded Fab Kills . | . . . Fab Network Shutdowns . | . . . Hacking | -11 -10 -10 --------- Run | Scr Mat Min Machines Accessed 5 | . 5 . Terminals 5 | . 5 . Fabricators . | . . . Repair Stations . | . . . Recycling Units . | . . . Scanalyzers . | . . . Garrison Access . | . . . Total Hacks 16 | . 16 . Successful 7 | . 7 . Failed 9 | . 9 . Catastrophic 1 | . 1 . Database Lockouts . | . . . Manual 12 | . 12 . Terminals 16 | . 16 . Fabricators . | . . . Repair Stations . | . . . Recycling Units . | . . . Scanalyzers . | . . . Garrison Access . | . . . Terminal Hacks 2 | . 2 . Part Schematic 1 | . 1 . Robot Analysis 1 | . 1 . Fabricator Hacks . | . . . Repair Station Hacks . | . . . Recycling Unit Hacks . | . . . Scanalyzer . | . . . Garrison Access Hacks . | . . . Unauthorized Hacks 5 | . 5 . Terminals 5 | . 5 . Assimilate 1 | . 1 . Botnet 4 | . 4 . Fabricators . | . . . Repair Stations . | . . . Recycling Units . | . . . Scanalyzers . | . . . Garrison Access . | . . . Data Cores Recovered . | . . . Used . | . . . Hacking Detections 5 | . 5 . Full Trace Events . | . . . Feedback Events . | . . . Feedback Blocked . | . . . Robot Schematics Acquired . | . . . Robots Built . | . . . Matter . | . . . Time . | . . . Total Robot Build Rating . | . . . Part Schematics Acquired 1 | . 1 . Parts Built . | . . . Matter . | . . . Time . | . . . Total Part Build Rating . | . . . Parts Repaired . | . . . Time . | . . . Parts Recycled . | . . . Recycled Matter . | . . . Retrieved Matter . | . . . Retrieved Components . | . . . Parts Scanalyzed . | . . . Part Schematics Acquired . | . . . Parts Damaged . | . . . Bothacking | -11 -10 -10 ------------ Run | Scr Mat Min Used RIF Installer . | . . . Robots Hacked . | . . . Non-combat . | . . . Combat . | . . . Robot Hacks Applied . | . . . Relay Couplers Released . | . . . Robots Rewired . | . . . Allies Hacked . | . . . Hacks Repelled . | . . . Allies | -11 -10 -10 -------- Run | Scr Mat Min Total Allies 1 | . 1 . Largest Group 1 | . 1 . Highest-Rated Group 10 | . 10 . Highest-Rated Ally 10 | . 10 . Total Orders . | . . . Ally Attacks . | . . . Total Damage . | . . . Kills . | . . . Allies Corrupted . | . . . Allies Melted . | . . . Intel | -11 -10 -10 ------- Run | Scr Mat Min Robot Analysis Total 1 | . 1 . Derelict Logs Recovered . | . . . Drone Launches . | . . . Drone Recoveries . | . . . Exploration | -11 -10 -10 ------------- Run | Scr Mat Min Turns Passed 2624 | 148 1948 528 Spaces Moved 1374 | 87 897 390 Core 18 | 18 . . Treads 971 | 69 897 5 Legs . | . . . Wheels 385 | . . 385 Hover . | . . . Flight . | . . . Fastest Speed 50 | 50 160 115 Average Speed 161 | 142 183 116 Slowest Speed 220 | 160 220 220 Overloaded Moves . | . . . Propulsion Burnouts . | . . . Robots Hopped . | . . . Cave-ins Triggered . | . . . Exploration Rate (%) 56 | 6 99 65 Regions Visited 2 Branch Regions 1 Pre-discovered Areas . | . . . Known Exits Taken . | . . . Unknown Exits Taken 2 | 1 1 . Scrap Searched 1 | . . 1 Spaces Dug . | . . . Terrain Destroyed 28 | . 9 19 Melee . | . . . Projectile . | . . . AOE 28 | . 9 19 Actions | -11 -10 -10 --------- Run | Scr Mat Min Total 1595 | 106 1051 438 Wait 27 | . 12 15 Move 1372 | 86 896 390 Hop . | . . . Pick Up 38 | 11 22 5 Fast Attach 4 | 2 2 . Attach 16 | 5 7 4 Detach . | . . . Swap 9 | . 5 4 Drop 7 | . 4 3 Fire 111 | 2 92 17 Melee . | . . . Ram . | . . . Kick . | . . . Crush 11 | . 11 . Escape Stasis . | . . . Rewire . | . . . Trap . | . . . Miscellaneous . | . . . Route ------- -11/Scrapyard -10/Materials (discovered 5 exits: [*Mat x3] / [*Min x2]) -10/Mines (discovered 1 exit: [*Mat]) History --------- Turn | Location | Event 4 | -11/Scrapyard | Discovered new exit (range 15) 149 | -11/Scrapyard | Entered Materials 308 | -10/Materials | Build established: Mutant 465 | -10/Materials | Discovered new exit (range 10) 594 | -10/Materials | Discovered new exit (range 3) 831 | -10/Materials | Discovered new exit (range 9) 963 | -10/Materials | Core integrity fell below 50% 1016 | -10/Materials | Lost 4 parts (1p1n2w) 1032 | -10/Materials | Discovered new exit (range 16) 1447 | -10/Materials | Core integrity fell below 20% 1580 | -10/Materials | Build established: Hauler-Mutant 1875 | -10/Materials | Discovered new exit (range 14) 2097 | -10/Materials | Entered Mines 2156 | -10/Mines | Discovered new exit (range 10) 2432 | -10/Mines | Assisted by bots powering up and referring to "LRC-V3" 2625 | -10/Mines | Destroyed by G-34 Mercenary with Small Laser Last Messages --------------- 02551_ S-10 Pest destroyed. 02560_ Acquired Imp. Heat Sink. 02563_ Dropped Lgt. Ion Engine. 02563_ Acquired Lgt. Angular Momentum Engine. 02564_ Acquired 10 matter. 02566_ Dropped Aluminum Leg. 02566_ Acquired Beamcaster. 02573_ Dropped Transport Network Coupler. 02574_ Acquired Lgt. Assault Rifle. 02586_ Med. Laser destroyed. 02595_ Lgt. Nuclear Core destroyed. 02597_ G-47 Trooper destroyed. 02597_ Switching to secondary target: G-34 Mercenary. 02598_ K-01 Serf collects debris. 02608_ Overheating: System interference. 02608_ Beamcaster temporarily disabled. 02608_ Lgt. Assault Rifle temporarily disabled. 02610_ K-01 Serf collects debris. 02617_ Wheel destroyed. 02621_ K-01 Serf collects debris. Map ----- +----------------------------------------------------+ | ?????# ## #?????# #????# #???### | | ?????## ## #?????# #????#!##### | | ??????# ## ####### #????#!%= | | ??????## ### < #????###### | | ???????####?######### #?####????# | | ???????????????????? ## ##???## | | ????????????????????###### ##???## | | ??????????????????###?## #????# | | ?????????????????## ## #????# | | ?????????????????# ##???## | | ??????????????#### ########## | | ????????????## ## ###???## | | ???????????## ### #?????# # | | ??????????## ### #?????# ## | | ????????### #?## ##????# ## | | ???????## #??# ##???## # | | ???????# #???## ####### | | ???????# != #??#### | | ????????# % %= #??# | | ????????##=% ##??# ### ######### | | ?????????# ==#??## #########?????# ## | | ?????????# % #??# #?????# #? | | ????????## *k #??# #???? #? | | ???????## #### ##### # #? | | ??????## #!%= #??????? #?##? | | ??????# @g [ #???????????##????? | | ??????# # ##?????????????????? | | ??????# ## #??????????????????? | | ??????## ######## #??????????????????? | | ???????###???????# #??????????????????? | | ?????????????????# #??????????????????? | | ?????????????????# #??????????????????? | | ?????????????????# #??????????????????? | | ?????????????????# ???????????????????? | | ?????????????????? ???????????????????? | | ?????????????????? ???????????????????? | | ?????????????????? ???????????????????? | | ?????????????????? ???????????????????? | | ?????????????????? ???????????????????? | | ?????????????????? ???????????????????? | | ??????????????????????????????????????? | | ??????????????????????????????????????? | | ??????????????????????????????????????? | | ??????????????????????????????????????? | | ??????????????????????????????????????? | | ??????????????????????????????????????? | | ??????????????????????????????????????? | | ??????????????????????????????????????? | | ??????????????????????????????????????? | | | +----------------------------------------------------+ Best States ------------- Heat Dissipation 25 Energy Generation 18 Energy Capacity 250 Matter Stores 300 Matter Capacity 300 Sight Range 16 Terrain Scan Density 10 Evasion (%) 40 Recoil Reduction 2 Item Schematics ----------------- Med. Storage Unit | -10/Materials | Hacked Robot Schematics ------------------ None Fabricated ------------ Nothing Alien Tech Used ----------------- None Achievements -------------- None Challenges ------------ None Game ------ Seed SmallMolecularReactor Manual? 0 Play Time 00:16:06 Cumulative 24.9 hours Start 2020.06.09 @ 13:31:54 End 2020.06.11 @ 19:19:48 Sessions 2 Manual Loads 0 Difficulty Rogue Special Mode None Game No. 59 Rogue 57 Adventurer 2 Explorer 0 Win Type - Total 0 Types 0/0/0/0/0/0/0 Lore% 32 Gallery% 37 Achievement% 28 Wizard Run 0 Options --------- ASCII 0 Keyboard 0 Movement Arrows Keybinds 0 Fullscreen 1 Font 18/SmallcapsGlow Map View 76x50 Tactical HUD 1 Map Filters NONE Filters NONE Steam 1 RUN: 566680a3-4634-4532-a0cf-77f6ff299b18